bitfinex-derivatives/quotes_BTCF0:USTF0_20250127
["timestamp","ask_amount","ask_price","bid_price","bid_amount"]
[1738011281209,0.41268137,101550.0,101540.0,0.557853]
[1738011281415,0.41268137,101550.0,101540.0,0.3608]
[1738011281719,0.21564837,101550.0,101540.0,0.557853]
[1738011281917,0.41268137,101550.0,101540.0,0.557853]
[1738011282620,0.41468137,101550.0,101540.0,0.557853]
[1738011282820,0.21864837,101550.0,101540.0,0.557853]
[1738011283023,0.41568137,101550.0,101540.0,0.557853]
[1738011284123,0.200033,101550.0,101540.0,0.557853]
[1738011286827,0.200033,101550.0,101540.0,0.3608]
[1738011287130,0.200033,101550.0,101540.0,0.557853]
[1738011287921,0.200033,101550.0,101540.0,0.3608]
[1738011288227,0.200033,101550.0,101530.0,0.00014774]
[1738011288228,0.197053,101540.0,101530.0,0.00014774]
[1738011288426,0.197072,101530.0,101520.0,0.3608]
[1738011288928,0.197072,101530.0,101520.0,0.557892]
[1738011289633,0.197072,101530.0,101520.0,0.3608]
[1738011289926,0.197072,101530.0,101520.0,0.923692]
[1738011290133,0.197072,101530.0,101520.0,0.7266]
[1738011290323,0.197072,101530.0,101520.0,0.005]
[1738011290524,0.197072,101530.0,101520.0,0.3658]
[1738011290829,0.197072,101530.0,101520.0,0.005]
[1738011291023,0.77345075,101530.0,101520.0,0.005]
[1738011291320,0.77345075,101530.0,101520.0,0.006]
[1738011291626,0.197072,101530.0,101520.0,0.563892]
[1738011292726,0.77345075,101530.0,101520.0,0.006]
[1738011293526,0.197072,101530.0,101520.0,0.563892]
[1738011294028,0.00014774,101540.0,101520.0,0.3668]
[1738011294222,0.00014774,101540.0,101530.0,0.557872]
[1738011294423,0.00014774,101540.0,101530.0,0.763972]
[1738011294628,0.00014774,101540.0,101530.0,2.263972]
[1738011295830,0.00014774,101540.0,101530.0,2.265972]
[1738011296729,0.19720074,101540.0,101530.0,0.559872]
[1738011297630,0.19720074,101540.0,101530.0,0.199072]
[1738011297837,0.19720074,101540.0,101530.0,0.002]
[1738011298035,0.77357949,101540.0,101530.0,0.002]
[1738011298332,0.41277949,101540.0,101530.0,0.3628]
[1738011298734,0.41277949,101540.0,101530.0,0.002]
[1738011299034,0.77357949,101540.0,101530.0,0.002]
[1738011300134,0.41277949,101540.0,101530.0,0.3628]
[1738011300334,0.00014774,101540.0,101530.0,0.77545075]
[1738011300531,1e-08,101540.0,101530.0,0.77545075]
[1738011300932,1e-08,101540.0,101530.0,0.84645075]
[1738011302839,1e-08,101540.0,101530.0,1.14645075]
[1738011303037,1e-08,101540.0,101530.0,0.84645075]
[1738011303436,1e-08,101540.0,101530.0,1.14645075]
[1738011304032,1e-08,101540.0,101530.0,1.15639991]
[1738011304240,0.14647307,101560.0,101540.0,0.3608]
[1738011304541,0.14647307,101560.0,101550.0,0.77341175]
[1738011304749,0.196976,101580.0,101570.0,0.196985]
[1738011304934,0.196976,101580.0,101570.0,0.918585]
[1738011305235,0.37431307,101600.0,101580.0,0.196966]
[1738011305236,0.19696,101590.0,101580.0,0.196966]
[1738011305444,0.19710774,101590.0,101580.0,0.557766]
[1738011305834,0.19710774,101590.0,101580.0,2.057766]
[1738011306632,0.19710774,101590.0,101580.0,1.8608]
[1738011306844,0.196995,101570.0,101560.0,0.19715974]
[1738011307044,0.196995,101570.0,101560.0,0.55795974]
[1738011307249,0.00214774,101590.0,101560.0,0.36094774]
[1738011307436,0.00214774,101590.0,101570.0,0.557782]
[1738011307437,0.19698,101580.0,101570.0,0.557782]
[1738011307642,0.19698,101580.0,101570.0,0.918582]
[1738011308442,0.20110874,101590.0,101580.0,0.196975]
[1738011308740,0.20110874,101590.0,101580.0,0.557775]
[1738011309038,0.19910874,101590.0,101580.0,0.557775]
[1738011309244,0.00214774,101590.0,101580.0,0.557775]
[1738011309433,0.296945,101600.0,101580.0,0.57637875]
[1738011309434,0.1,101600.0,101580.0,0.57637875]
[1738011309644,0.1,101600.0,101590.0,0.77333475]
[1738011309847,0.17534453,101620.0,101610.0,0.196917]
[1738011310044,0.17534453,101620.0,101610.0,0.918517]
[1738011310346,0.37224253,101620.0,101610.0,0.7216]
[1738011310542,0.17534453,101620.0,101600.0,0.3608]
[1738011310850,0.17534453,101620.0,101610.0,0.557717]
[1738011311544,0.37624253,101620.0,101610.0,0.557717]
[1738011312041,0.37624253,101620.0,101610.0,0.3608]
[1738011312239,0.196917,101610.0,101600.0,0.36094774]
[1738011312541,0.196917,101610.0,101600.0,0.00014774]
[1738011312949,0.196917,101610.0,101600.0,0.36194774]
[1738011313140,0.33653873,101610.0,101600.0,0.36194774]
[1738011313340,0.196917,101610.0,101600.0,0.55888374]
[1738011313548,0.2009,101620.0,101610.0,0.196917]
[1738011313741,0.2009,101620.0,101610.0,0.557717]
[1738011313941,0.1969,101620.0,101610.0,0.557717]
[1738011315038,0.196917,101610.0,101600.0,0.00114774]
[1738011315241,0.69733873,101610.0,101600.0,0.00114774]
[1738011315441,0.196956,101590.0,101580.0,0.3608]
[1738011315643,0.13962173,101590.0,101570.0,0.3608]
[1738011315841,0.196995,101570.0,101560.0,0.36227668]
[1738011316142,0.33661673,101570.0,101560.0,0.55929068]
[1738011316343,0.33661673,101570.0,101560.0,0.197014]
[1738011316546,0.33661673,101570.0,101550.0,0.28265205]
[1738011316547,0.197014,101560.0,101550.0,0.28265205]
[1738011316744,0.33663573,101560.0,101550.0,0.64345205]
[1738011317045,0.33663573,101560.0,101550.0,0.00014774]
[1738011317237,0.69743573,101560.0,101550.0,0.00014774]
[1738011317443,0.33663573,101560.0,101550.0,0.55798174]
[1738011317638,0.197014,101560.0,101550.0,0.55798174]
[1738011317838,0.13962173,101570.0,101550.0,0.56198174]
[1738011318042,0.33662173,101570.0,101560.0,0.557814]
[1738011318249,0.13962173,101570.0,101550.0,0.49654774]
[1738011318547,0.33663573,101560.0,101550.0,0.49454774]
[1738011318751,0.69743573,101560.0,101550.0,0.00214774]
[1738011319154,0.21072173,101570.0,101550.0,1.86694774]
[1738011319351,0.19713074,101580.0,101570.0,0.196995]
[1738011319540,0.19713074,101580.0,101570.0,0.3608]
[1738011319742,0.33675247,101580.0,101570.0,0.3608]
[1738011319948,0.00014774,101580.0,101570.0,0.557795]
[1738011321043,0.196995,101570.0,101560.0,0.33201]
[1738011321240,0.33661673,101570.0,101560.0,0.135]
[1738011321441,0.69741673,101570.0,101560.0,0.135]
[1738011321647,0.197014,101560.0,101550.0,1.86494774]
[1738011321953,0.197014,101560.0,101550.0,0.55798174]
[1738011322347,0.33663573,101560.0,101550.0,2.05798174]
[1738011322550,0.197014,101560.0,101550.0,2.05798174]
[1738011323148,0.197014,101560.0,101550.0,1.86094774]
[1738011323949,0.197014,101560.0,101550.0,1.86294774]
[1738011324155,0.197014,101560.0,101550.0,2.05998174]
[1738011324354,0.41243203,101570.0,101560.0,0.197014]
[1738011324649,0.00014774,101580.0,101570.0,0.196995]
[1738011324860,0.00014774,101580.0,101570.0,0.557795]
[1738011325356,0.196944,101600.0,101590.0,0.196948]
[1738011325548,0.196944,101600.0,101590.0,0.918548]
[1738011325949,0.196944,101600.0,101590.0,2.418548]
[1738011326253,0.196944,101600.0,101590.0,0.918548]
[1738011326648,0.201944,101600.0,101590.0,0.919548]
[1738011326848,0.201944,101600.0,101590.0,2.419548]
[1738011327249,0.203944,101600.0,101590.0,2.419548]
[1738011328658,0.007,101600.0,101590.0,2.419548]
[1738011328861,0.007,101600.0,101590.0,2.557448]
[1738011329059,0.203937,101600.0,101590.0,2.557448]
[1738011330362,0.203937,101600.0,101590.0,1.057448]
[1738011330962,0.564737,101600.0,101590.0,0.001]
[1738011331263,0.203937,101600.0,101590.0,0.001]
[1738011331558,0.78017303,101600.0,101590.0,0.001]
[1738011331967,0.197014,101560.0,101550.0,0.98209401]
[1738011332568,0.197014,101560.0,101550.0,2.48209401]
[1738011332875,0.0717,101590.0,101550.0,2.84975504]
[1738011333074,0.22528074,101600.0,101570.0,0.3608]
[1738011333276,0.19712374,101580.0,101570.0,0.55778]
[1738011335262,0.19912374,101580.0,101570.0,0.55778]
[1738011335978,0.196995,101570.0,101560.0,0.55796174]
[1738011336269,0.196995,101570.0,101560.0,0.00014774]
[1738011336774,0.557795,101570.0,101560.0,0.00014774]
[1738011337169,0.77323103,101570.0,101560.0,0.00014774]
[1738011337866,0.77323103,101570.0,101560.0,0.00114774]
[1738011338376,0.77323103,101570.0,101560.0,0.36194774]
[1738011338377,0.41243103,101570.0,101560.0,0.36194774]
[1738011338679,0.196995,101570.0,101560.0,0.55896174]
[1738011341083,0.196995,101570.0,101560.0,0.00114774]
[1738011341267,0.41243103,101570.0,101560.0,0.00114774]
[1738011341471,0.77323103,101570.0,101560.0,0.00114774]
[1738011341979,0.41243103,101570.0,101560.0,0.55896174]
[1738011342283,0.19712674,101580.0,101570.0,0.196995]
[1738011342583,0.19712674,101580.0,101570.0,0.557795]
[1738011342768,0.19712674,101580.0,101560.0,0.00114774]
[1738011342769,0.196995,101570.0,101560.0,0.00114774]
[1738011342974,0.33672841,101570.0,101560.0,0.00114774]
[1738011343280,0.69752841,101570.0,101560.0,0.00114774]
[1738011343775,0.77022841,101570.0,101560.0,0.00114774]
[1738011344178,0.197053,101540.0,101530.0,0.78472701]
[1738011344379,0.197041,101550.0,101540.0,0.197053]
[1738011344875,0.50053341,101560.0,101540.0,0.3608]
[1738011344876,0.13973341,101560.0,101540.0,0.3608]
[1738011345075,0.33675441,101560.0,101550.0,0.197034]
[1738011345480,0.13988115,101560.0,101540.0,0.36894774]
[1738011345779,0.197034,101550.0,101540.0,0.56598874]
[1738011346478,0.13988115,101560.0,101540.0,0.20518874]
[1738011346683,0.13988115,101560.0,101540.0,0.56598874]
[1738011346886,0.13988115,101560.0,101550.0,0.557834]
[1738011347071,0.00014774,101560.0,101550.0,0.557834]
[1738011347375,0.00014774,101560.0,101550.0,0.561834]
[1738011347977,0.32252635,101580.0,101550.0,0.50053341]
[1738011348168,0.32252635,101580.0,101570.0,0.918595]
[1738011348372,0.32252635,101580.0,101570.0,1.05832841]
[1738011348572,0.19685615,101580.0,101570.0,1.05832841]
[1738011348776,0.08545615,101580.0,101570.0,1.05832841]
[1738011349282,1.5e-07,101580.0,101570.0,1.05832841]
[1738011349981,1.5e-07,101580.0,101570.0,2.55832841]
[1738011350581,0.00100015,101580.0,101570.0,2.55832841]
[1738011350781,1.5e-07,101580.0,101570.0,2.55832841]
[1738011350975,1.5e-07,101580.0,101570.0,2.63385556]
[1738011351379,0.00200015,101580.0,101570.0,2.63385556]
[1738011351585,0.00200015,101580.0,101570.0,2.42853391]
[1738011352384,1.5e-07,101580.0,101570.0,2.94379447]
[1738011352574,8.9e-07,101590.0,101570.0,2.44679947]
[1738011352776,8.9e-07,101590.0,101580.0,0.91523556]
[1738011353182,8.9e-07,101590.0,101580.0,1.21523556]
[1738011353789,0.00100089,101590.0,101580.0,1.21523556]
[1738011353983,0.00100089,101590.0,101580.0,0.699975]
[1738011354288,0.19795689,101590.0,101580.0,0.3608]
[1738011354680,0.19695689,101590.0,101580.0,0.3628]
[1738011355281,0.19695689,101590.0,101580.0,0.559776]
[1738011355489,0.19695689,101590.0,101580.0,0.564776]
[1738011356885,8.9e-07,101590.0,101580.0,0.564776]
[1738011357691,8.9e-07,101590.0,101580.0,0.635976]
[1738011360292,8.9e-07,101590.0,101580.0,0.3678]
[1738011360293,0.19695689,101590.0,101580.0,0.3678]
[1738011360885,0.19695689,101590.0,101580.0,0.564776]
[1738011361090,8.9e-07,101590.0,101580.0,0.564776]
[1738011361282,8.9e-07,101590.0,101580.0,0.91983656]
[1738011361682,8.9e-07,101590.0,101580.0,1.21983656]
[1738011362482,0.407367,101640.0,101620.0,0.196882]
[1738011362683,0.407367,101640.0,101630.0,0.557679]
[1738011362894,0.338967,101640.0,101630.0,0.557679]
[1738011363087,0.338967,101640.0,101630.0,2.057679]
[1738011363688,0.338967,101640.0,101630.0,1.8608]
[1738011363689,0.339967,101640.0,101630.0,1.8608]
[1738011363887,0.339967,101640.0,101630.0,1.5]
[1738011363888,0.55522756,101640.0,101630.0,1.5]
[1738011364089,0.91602756,101640.0,101630.0,1.5]
[1738011364285,0.91502756,101640.0,101630.0,1.5]
[1738011364490,0.196879,101630.0,101620.0,0.55784074]
[1738011364694,0.197865,101640.0,101630.0,0.196879]
[1738011364894,0.197865,101640.0,101630.0,0.557679]
[1738011365299,0.201865,101640.0,101630.0,0.557679]
[1738011365896,0.197865,101640.0,101630.0,0.558679]
[1738011366098,0.201865,101640.0,101630.0,0.558679]
[1738011366293,0.200865,101640.0,101630.0,0.558679]
[1738011366495,0.004,101640.0,101630.0,0.558679]
[1738011367096,0.200859,101640.0,101630.0,0.558679]
[1738011367306,0.005,101640.0,101630.0,0.558679]
[1738011368699,0.201859,101640.0,101630.0,0.558679]
[1738011369600,0.200859,101640.0,101630.0,0.557679]
[1738011369808,0.201859,101640.0,101630.0,0.557679]
[1738011370098,0.201859,101640.0,101620.0,0.00014774]
[1738011370099,0.196879,101630.0,101620.0,0.00014774]
[1738011370300,0.196917,101610.0,101600.0,0.00147621]
[1738011370500,0.41217756,101610.0,101600.0,0.00147621]
[1738011370701,0.196956,101590.0,101580.0,1.06742814]
[1738011371705,0.196956,101590.0,101580.0,0.87045514]
[1738011371902,0.196956,101590.0,101580.0,0.50965514]
[1738011372093,0.557756,101590.0,101580.0,0.50965514]
[1738011372301,0.196956,101590.0,101580.0,1.06743114]
[1738011372604,0.41319774,101600.0,101590.0,0.196956]
[1738011372812,0.19709774,101600.0,101590.0,0.557756]
[1738011373008,0.19709774,101600.0,101590.0,0.3608]
[1738011373196,0.196956,101590.0,101580.0,0.3738]
[1738011373812,0.196956,101590.0,101580.0,0.566776]
[1738011374008,0.00014774,101600.0,101590.0,0.199956]
[1738011374210,0.196918,101610.0,101590.0,0.560756]
[1738011374505,0.340003,101620.0,101610.0,0.196917]
[1738011374807,0.340003,101620.0,101610.0,0.557717]
[1738011375210,0.340003,101620.0,101610.0,1.696917]
[1738011375510,0.340003,101620.0,101610.0,2.057717]
[1738011375711,0.340003,101620.0,101610.0,2.058717]
[1738011376208,0.27859723,101630.0,101610.0,2.058705]
[1738011376396,0.196898,101620.0,101610.0,2.058705]
[1738011376603,0.405886,101630.0,101620.0,0.196898]
[1738011376804,0.209,101630.0,101620.0,0.557698]
[1738011377110,0.405879,101630.0,101620.0,0.557698]
[1738011377309,0.209,101630.0,101620.0,0.557698]
[1738011377708,0.62527056,101650.0,101620.0,0.3608]
[1738011377908,0.62651156,101650.0,101640.0,0.3608]
[1738011378111,0.2144,101650.0,101630.0,0.557664]
[1738011378415,0.196859,101640.0,101630.0,0.557664]
[1738011379608,0.196879,101630.0,101620.0,0.55783974]
[1738011380208,0.196865,101640.0,101630.0,0.196865]
[1738011380403,0.197865,101640.0,101630.0,0.557665]
[1738011380608,0.197865,101640.0,101630.0,2.057665]
[1738011381612,0.201865,101640.0,101630.0,2.057665]
[1738011382107,0.201859,101640.0,101630.0,2.057665]
[1738011382707,0.200859,101640.0,101630.0,2.057665]
[1738011383517,0.005,101640.0,101630.0,2.057665]
[1738011385212,0.201859,101640.0,101630.0,2.057665]
[1738011385613,0.201859,101640.0,101630.0,0.557665]
[1738011385819,0.005,101640.0,101630.0,0.557665]
[1738011386115,0.005,101640.0,101630.0,2.057665]
[1738011387411,0.34139,101640.0,101630.0,1.5]
[1738011387609,0.34139,101640.0,101620.0,0.55783974]
[1738011387610,0.196879,101630.0,101620.0,0.55783974]
[1738011387810,0.33641,101630.0,101620.0,0.55783974]
[1738011388012,0.196879,101630.0,101620.0,2.05783974]
[1738011388318,0.201865,101640.0,101630.0,0.196879]
[1738011388526,0.201865,101640.0,101630.0,0.557679]
[1738011388916,0.200865,101640.0,101630.0,0.557679]
[1738011389709,0.19289867,101640.0,101630.0,0.557679]
[1738011390620,0.19389867,101640.0,101630.0,0.557679]
[1738011391210,0.33342967,101640.0,101630.0,0.196879]
[1738011391408,0.140531,101640.0,101620.0,2.03109783]
[1738011391608,0.196879,101630.0,101620.0,2.22799383]
[1738011393122,0.197865,101640.0,101630.0,0.196879]
[1738011393324,0.197865,101640.0,101630.0,0.557679]
[1738011393525,0.337396,101640.0,101630.0,1.8608]
[1738011393717,0.698196,101640.0,101630.0,1.5]
[1738011393916,0.196879,101630.0,101620.0,0.17029783]
[1738011394113,0.69721,101630.0,101620.0,0.17029783]
[1738011394319,0.69721,101630.0,101620.0,1.50014774]
[1738011394723,0.33641,101630.0,101620.0,1.50014774]
[1738011395019,0.33741,101630.0,101620.0,1.50014774]
[1738011395220,0.69821,101630.0,101620.0,1.50014774]
[1738011396525,0.69821,101630.0,101620.0,0.00014774]
[1738011396725,0.69821,101630.0,101610.0,0.3970171]
[1738011396726,0.196898,101620.0,101610.0,0.3970171]
[1738011397026,0.910629,101620.0,101610.0,0.3970171]
[1738011397924,0.910629,101620.0,101610.0,0.3980171]
[1738011398523,0.910629,101620.0,101610.0,0.001]
[1738011398826,0.196918,101610.0,101600.0,0.00014774]
[1738011399027,0.697249,101610.0,101600.0,0.00014774]
[1738011400129,0.697249,101610.0,101600.0,0.00214774]
[1738011400327,0.697249,101610.0,101600.0,0.00700001]
[1738011400517,0.196918,101610.0,101600.0,0.36780001]
[1738011400717,0.336449,101610.0,101600.0,0.00700001]
[1738011401020,0.196918,101610.0,101600.0,0.56473701]
[1738011401220,0.196906,101620.0,101610.0,0.196905]
[1738011401426,0.196906,101620.0,101610.0,0.557705]
[1738011401627,0.196906,101620.0,101610.0,0.629405]
[1738011402324,0.196906,101620.0,101610.0,0.559705]
[1738011402722,0.196906,101620.0,101610.0,2.059705]
[1738011403230,0.196906,101620.0,101610.0,1.8628]
[1738011403928,0.196906,101620.0,101610.0,0.559698]
[1738011404126,0.697237,101620.0,101610.0,0.002]
[1738011404428,0.196957,101580.0,101570.0,0.57167661]
[1738011405224,0.336488,101580.0,101570.0,0.36227661]
[1738011405624,0.336488,101580.0,101570.0,0.9844105]
[1738011406022,0.336488,101580.0,101570.0,0.6236105]
[1738011406227,0.336488,101580.0,101570.0,0.6276105]
[1738011406429,0.336488,101580.0,101570.0,0.6366105]
[1738011407632,0.336488,101580.0,101570.0,0.9974105]
[1738011409128,0.336488,101580.0,101570.0,0.37527661]
[1738011409329,0.196957,101580.0,101570.0,0.37527661]
[1738011409530,0.196957,101580.0,101570.0,0.57225261]
[1738011410033,0.336488,101580.0,101570.0,1.87527661]
[1738011410335,0.336488,101580.0,101570.0,1.51447661]
[1738011410631,0.697288,101580.0,101570.0,0.013]
[1738011410822,0.903088,101580.0,101570.0,0.013]
[1738011411531,0.91270847,101580.0,101570.0,0.013]
[1738011411727,0.77560847,101580.0,101570.0,0.013]
[1738011413028,0.70690847,101580.0,101570.0,0.013]
[1738011414236,0.34610847,101580.0,101570.0,0.013]
[1738011414437,0.34610847,101580.0,101570.0,0.3738]
[1738011414634,0.34610847,101580.0,101570.0,0.013]
[1738011414931,0.70690847,101580.0,101570.0,0.013]
[1738011417238,0.34610847,101580.0,101570.0,0.3738]
[1738011417836,0.20657747,101580.0,101570.0,0.3738]
[1738011418037,0.20657747,101580.0,101570.0,0.561776]
[1738011418235,0.20657747,101580.0,101570.0,0.703476]
[1738011418543,0.34610847,101580.0,101570.0,0.5055]
[1738011418738,0.20657747,101580.0,101570.0,0.702476]
[1738011419331,0.196957,101580.0,101570.0,0.769276]
[1738011419934,0.196957,101580.0,101570.0,0.559776]
[1738011420343,0.336488,101580.0,101570.0,0.3628]
[1738011420935,0.196957,101580.0,101570.0,0.559776]
[1738011421139,0.00989437,101590.0,101580.0,0.196956]
[1738011421341,1e-08,101590.0,101580.0,0.908587]
[1738011422332,0.196864,101630.0,101590.0,0.36079999]
[1738011422551,0.196864,101630.0,101620.0,0.918479]
[1738011422933,0.196864,101630.0,101620.0,1.127479]
[1738011423129,0.196864,101630.0,101620.0,2.627479]
[1738011423737,0.34628182,101640.0,101630.0,0.19686]
[1738011423939,0.34628182,101640.0,101630.0,0.55766]
[1738011423940,0.00990282,101640.0,101630.0,0.55766]
[1738011424134,0.00014774,101640.0,101630.0,0.697191]
[1738011424331,0.00962778,101670.0,101630.0,0.800331]
[1738011424642,0.196782,101670.0,101660.0,0.557601]
[1738011425036,0.336313,101670.0,101660.0,0.557601]
[1738011425239,0.196782,101670.0,101660.0,0.557601]
[1738011425436,0.336313,101670.0,101660.0,0.557601]
[1738011425737,0.14918424,101680.0,101660.0,0.3608]
[1738011425938,0.33631,101680.0,101670.0,0.557582]
[1738011426137,0.33631,101680.0,101670.0,0.3608]
[1738011426944,0.196782,101670.0,101660.0,0.558595]
[1738011427335,0.336313,101670.0,101660.0,0.558595]
[1738011427535,0.196782,101670.0,101660.0,0.557595]
[1738011427843,0.196782,101670.0,101660.0,0.918395]
[1738011428244,0.140531,101680.0,101660.0,0.7216]
[1738011428444,0.197779,101680.0,101670.0,0.3608]
[1738011428647,0.33731,101680.0,101670.0,0.3608]
[1738011428946,0.33631,101680.0,101670.0,0.557582]
[1738011429140,0.196779,101680.0,101670.0,0.557582]
[1738011429541,0.33631,101680.0,101670.0,0.557582]
[1738011429746,0.33731,101680.0,101670.0,0.557582]
[1738011430341,0.1,101700.0,101670.0,1.054742]
[1738011430550,0.00011,101740.0,101730.0,0.196666]
[1738011430733,0.00984278,101740.0,101730.0,0.918266]
[1738011430940,0.00011,101740.0,101730.0,0.918266]
[1738011431233,0.00011,101740.0,101730.0,2.418266]
[1738011431639,0.336288,101740.0,101730.0,1.5]
[1738011432243,0.336288,101740.0,101730.0,1.501]
[1738011432838,0.337288,101740.0,101730.0,1.501]
[1738011433041,0.197757,101740.0,101730.0,1.697666]
[1738011433443,0.197757,101740.0,101730.0,2.058466]
[1738011433645,0.197757,101740.0,101730.0,1.697666]
[1738011433849,0.337288,101740.0,101730.0,1.501]
[1738011434053,0.197757,101740.0,101730.0,1.8618]
[1738011434435,0.197757,101740.0,101730.0,0.3608]
[1738011434842,0.197757,101740.0,101730.0,2.057466]
[1738011436149,0.197757,101740.0,101730.0,1.8608]
[1738011436451,0.197757,101740.0,101730.0,0.3608]
[1738011436641,0.197757,101740.0,101730.0,0.557466]
[1738011436837,0.00111,101740.0,101730.0,0.557466]
[1738011437648,0.00111,101740.0,101730.0,0.696997]
[1738011438350,0.1966,101770.0,101750.0,0.196628]
[1738011438547,0.500331,101770.0,101740.0,0.3608]
[1738011438750,0.139531,101750.0,101730.0,0.557465]
[1738011439043,0.139531,101740.0,101730.0,0.36094774]
[1738011439247,0.139531,101740.0,101730.0,0.00014774]
[1738011439248,0.696978,101740.0,101730.0,0.00014774]
[1738011439745,0.196647,101740.0,101730.0,0.00214774]
[1738011440148,0.196647,101740.0,101730.0,0.55961374]
[1738011440639,0.196647,101740.0,101730.0,0.36294774]
[1738011440839,0.196647,101740.0,101730.0,0.55961374]
[1738011441043,0.19488839,101740.0,101730.0,0.55961374]
[1738011441243,0.500331,101760.0,101730.0,0.50247874]
[1738011441448,0.196608,101760.0,101750.0,0.557424]
[1738011443347,0.196608,101760.0,101750.0,0.3608]
[1738011443945,0.196608,101760.0,101750.0,0.557428]
[1738011444253,0.196608,101760.0,101750.0,0.3608]
[1738011445152,0.336139,101760.0,101750.0,1.8608]
[1738011445453,0.336139,101760.0,101750.0,1.5]
[1738011446053,0.267908,101760.0,101750.0,2.057428]
[1738011446444,0.407439,101760.0,101750.0,2.057428]
[1738011446649,0.407439,101760.0,101750.0,1.8608]
[1738011446841,0.267908,101760.0,101750.0,1.8608]
[1738011447245,0.267908,101760.0,101750.0,2.057428]
[1738011447447,0.267908,101760.0,101750.0,1.8608]
[1738011447656,0.407439,101760.0,101750.0,1.8608]
[1738011447955,0.407439,101760.0,101750.0,1.5]
[1738011448151,0.267908,101760.0,101750.0,1.5]
[1738011448353,0.628708,101760.0,101750.0,1.5]
[1738011448656,0.267908,101760.0,101750.0,2.057428]
[1738011449449,0.407439,101760.0,101750.0,1.5]
[1738011449657,0.768239,101760.0,101750.0,1.5]
[1738011450156,0.407439,101760.0,101750.0,1.5]
[1738011450361,0.267908,101760.0,101750.0,1.5]
[1738011450649,0.267908,101760.0,101750.0,1.8608]
[1738011450852,0.267908,101760.0,101750.0,1.5]
[1738011450853,0.407439,101760.0,101750.0,1.5]
[1738011451049,0.267908,101760.0,101750.0,1.8608]
[1738011452752,0.407439,101760.0,101750.0,1.8608]
[1738011453055,0.839939,101760.0,101750.0,1.5]
[1738011453743,0.339608,101760.0,101750.0,1.8608]
[1738011453950,0.267908,101760.0,101750.0,1.8608]
[1738011454656,0.267908,101760.0,101750.0,0.3608]
[1738011455755,0.267908,101760.0,101750.0,1.8608]
[1738011455954,0.196608,101760.0,101750.0,2.057428]
[1738011456646,0.196608,101760.0,101750.0,1.8608]
[1738011457050,0.696939,101760.0,101750.0,1.5]
[1738011458153,0.500331,101760.0,101730.0,0.52763275]
[1738011458352,0.196647,101740.0,101730.0,0.52763275]
[1738011458552,0.196647,101740.0,101730.0,0.58319442]
[1738011458752,0.266447,101740.0,101730.0,0.22239442]
[1738011459058,0.337147,101740.0,101730.0,0.22239442]
[1738011459258,0.337147,101740.0,101730.0,1.72239442]
[1738011459652,0.337147,101740.0,101730.0,1.72739442]
[1738011459850,0.476678,101740.0,101730.0,1.72939442]
[1738011460054,0.337147,101740.0,101730.0,1.72939442]
[1738011460762,0.337147,101740.0,101730.0,1.55722839]
[1738011461246,0.476678,101740.0,101730.0,1.72494159]
[1738011461452,0.837478,101740.0,101730.0,1.72694159]
[1738011461664,0.837478,101740.0,101730.0,0.22694159]
[1738011462161,0.837478,101740.0,101730.0,1.72694159]
[1738011462756,0.837478,101740.0,101730.0,0.22694159]
[1738011463459,0.837478,101740.0,101730.0,1.72694159]
[1738011464757,0.84709014,101740.0,101730.0,1.72694159]
[1738011465056,0.84709014,101740.0,101730.0,1.6767132]
[1738011465459,0.48629014,101740.0,101730.0,1.6767132]
[1738011466261,0.84709014,101740.0,101730.0,1.6767132]
[1738011466953,0.48629014,101740.0,101730.0,1.6767132]
[1738011467151,0.34675914,101740.0,101730.0,2.2341792]
[1738011467563,0.20625914,101740.0,101730.0,2.2341792]
[1738011468458,0.34579014,101740.0,101730.0,0.7341792]
[1738011468863,0.34579014,101740.0,101730.0,2.2341792]
[1738011469165,0.00961214,101740.0,101730.0,2.2341792]
[1738011469360,0.00014774,101750.0,101730.0,2.2341792]
[1738011469361,0.19679474,101750.0,101740.0,0.196647]
[1738011469666,0.34623313,101750.0,101740.0,0.557447]
[1738011470256,0.14958613,101750.0,101740.0,0.3608]
[1738011470457,0.34621413,101750.0,101740.0,0.3608]
[1738011470659,0.34621413,101750.0,101740.0,0.3628]
[1738011470864,0.34621413,101750.0,101740.0,0.002]
[1738011471459,0.70701413,101750.0,101740.0,0.002]
[1738011472058,0.70701413,101750.0,101740.0,0.1717132]
[1738011472656,0.34621413,101750.0,101740.0,0.1727132]
[1738011473167,0.70701413,101750.0,101740.0,1.6727132]
[1738011473558,0.70701413,101750.0,101740.0,0.1727132]
[1738011473755,0.686086,101760.0,101740.0,0.1727132]
[1738011473756,0.02947533,101780.0,101750.0,0.3608]
[1738011474060,0.10986888,101800.0,101790.0,0.19655]
[1738011474253,0.1,101800.0,101790.0,1.057681]
[1738011474459,0.1,101800.0,101790.0,0.91815]
[1738011474665,0.1,101800.0,101790.0,0.99015]
[1738011474859,0.1,101800.0,101790.0,1.129681]
[1738011475368,0.196494,101820.0,101810.0,0.196512]
[1738011475369,0.21193412,101820.0,101810.0,0.196512]
[1738011475562,0.21193412,101820.0,101810.0,0.918112]
[1738011475967,0.40842712,101820.0,101810.0,0.918112]
[1738011476169,0.21193412,101820.0,101810.0,0.918112]
[1738011476673,0.40842712,101820.0,101810.0,0.918112]
[1738011476975,0.40842712,101820.0,101810.0,0.919112]
[1738011480666,0.40842712,101820.0,101810.0,0.91876165]
[1738011480868,0.20621999,101820.0,101810.0,0.91876165]
[1738011481276,0.20621999,101820.0,101810.0,1.05829265]
[1738011482469,0.20621999,101820.0,101810.0,1.05729265]
[1738011482781,0.20621999,101820.0,101810.0,1.05829265]
[1738011483369,0.20621999,101820.0,101810.0,1.12729265]
[1738011485276,0.20621999,101820.0,101810.0,0.931131]
[1738011485479,0.20621999,101820.0,101810.0,0.7226]
[1738011485676,0.34575099,101820.0,101810.0,0.70410936]
[1738011485977,0.34575099,101820.0,101810.0,0.31181564]
[1738011486170,0.20621999,101820.0,101810.0,0.31181564]